bitfinex-derivatives/quotes_SOLF0:USTF0_20240911
["timestamp","ask_amount","ask_price","bid_price","bid_amount"]
[1726069465420,2.7755,132.25,132.16,32.13]
[1726069465708,5.2757284,132.27,132.18,32.13]
[1726069466014,1.4126,132.27,132.18,32.13]
[1726069466305,5.21216272,132.27,132.18,32.13]
[1726069466507,5.21216272,132.27,132.21,3.782]
[1726069466917,5.21216272,132.27,132.18,32.13]
[1726069467507,32.13,132.3,132.2,32.13]
[1726069467904,1.341,132.29,132.17,32.13]
[1726069468113,32.13,132.28,132.17,32.13]
[1726069468817,32.13,132.26,132.15,33.4568]
[1726069469210,3.7816,132.23,132.2,3.7822]
[1726069469616,32.13,132.26,132.18,3.7827]
[1726069470311,32.13,132.26,132.15,33.4568]
[1726069470503,32.13,132.28,132.15,33.4568]
[1726069470819,3.781,132.25,132.15,33.4568]
[1726069471113,32.13,132.28,132.15,33.4568]
[1726069471516,32.13,132.28,132.19,3.7824]
[1726069471714,3.7804,132.27,132.2,32.13]
[1726069472019,4.0008,132.31,132.2,32.13]
[1726069472220,3.7807,132.26,132.2,32.13]
[1726069472413,3.7807,132.26,132.22,3.7815]
[1726069472716,3.7802,132.28,132.2,32.13]
[1726069473016,3.7802,132.28,132.24,3.7809]
[1726069473209,3.7802,132.28,132.2,32.13]
[1726069473519,7.73614528,132.31,132.2,32.13]
[1726069474310,32.13,132.29,132.17,32.13]
[1726069474706,32.13,132.29,132.2,3.7821]
[1726069474915,32.13,132.27,132.17,32.13]
[1726069475116,7.73614528,132.31,132.15,1.3268]
[1726069475311,7.73614528,132.31,132.24,3.781]
[1726069475519,7.73614528,132.31,132.2,32.13]
[1726069475814,3.7805,132.27,132.23,3.7813]
[1726069476014,7.73614528,132.31,132.23,3.7813]
[1726069476204,32.13,132.3,132.17,32.13]
[1726069476817,32.13,132.3,132.24,3.781]
[1726069476818,3.7803,132.28,132.24,3.781]
[1726069477113,33.68217149,132.46,132.24,32.13]
[1726069477313,32.13,132.37,132.26,32.13]
[1726069477519,35.89020956,132.37,132.26,35.95375601]
[1726069477718,35.89020956,132.37,132.26,32.13]
[1726069477920,3.7785,132.34,132.3,3.7793]
[1726069478118,35.89020956,132.37,132.26,32.13]
[1726069478321,35.89020956,132.37,132.25,2.6504]
[1726069478322,32.13,132.35,132.25,2.6504]
[1726069478511,3.7793,132.31,132.27,3.7802]
[1726069478917,1.3377,132.34,132.25,1.3268]
[1726069479116,1.3377,132.34,132.3,3.7793]
[1726069479520,3.76020956,132.37,132.26,32.13]
[1726069479821,33.5379,132.38,132.28,32.13]
[1726069480310,3.778,132.35,132.31,3.7789]
[1726069480516,3.778,132.35,132.28,32.13]
[1726069480913,2.6959,132.4,132.28,32.13]
[1726069481320,3.7779,132.36,132.32,3.7787]
[1726069482223,32.13,132.38,132.28,32.13]
[1726069482427,3.72174767,132.37,132.28,32.13]
[1726069482621,3.778,132.35,132.28,32.13]
[1726069482816,7.55984292,132.35,132.28,32.13]
[1726069483017,3.778,132.35,132.28,32.13]
[1726069483215,1.3575,132.37,132.31,3.779]
[1726069483419,1.3575,132.37,132.28,32.13]
[1726069483614,3.77201602,132.36,132.28,32.13]
[1726069483811,3.7783,132.34,132.3,3.7792]
[1726069484213,3.7782,132.35,132.28,32.13]
[1726069484522,3.77201602,132.36,132.28,32.13]
[1726069484722,3.7785,132.34,132.3,3.7792]
[1726069484917,3.77201602,132.36,132.3,3.7792]
[1726069485117,32.13,132.36,132.25,33.4568]
[1726069485421,3.7788,132.33,132.29,3.7795]
[1726069485728,3.7788,132.33,132.25,33.4568]
[1726069486621,1.3575,132.37,132.25,1.3268]
[1726069486820,1.3575,132.37,132.27,32.13]
[1726069487119,1.3575,132.37,132.31,3.7789]
[1726069487120,3.7783,132.35,132.31,3.7789]
[1726069487318,1.3575,132.37,132.28,1.3305]
[1726069487521,33.4875,132.37,132.28,1.3305]
[1726069487716,33.4875,132.37,132.3,3.7792]
[1726069488119,33.4875,132.37,132.28,1.3305]
[1726069488318,33.4875,132.37,132.25,33.4568]
[1726069490726,33.4875,132.37,132.25,33.4568]
[1726069490917,3.7785,132.34,132.31,3.779]
[1726069491119,1.3575,132.37,132.29,32.13]
[1726069492027,2.6959,132.4,132.31,32.13]
[1726069492229,6.42208687,132.4,132.31,35.84031146]
[1726069492418,32.13,132.44,132.33,32.13]
[1726069492724,32.13,132.44,132.34,3.80367402]
[1726069493122,3.7762,132.42,132.33,33.4379]
[1726069493328,32.13,132.44,132.33,37.27067895]
[1726069494517,33.5362,132.44,132.33,37.27067895]
[1726069494719,3.7763,132.41,132.33,37.27067895]
[1726069494919,3.7763,132.41,132.33,5.14067895]
[1726069495116,3.7768,132.4,132.36,3.7774]
[1726069495426,32.13,132.42,132.33,1.3079]
[1726069495728,3.7769,132.39,132.32,5.09147969]
[1726069495929,32.13,132.42,132.32,5.09147969]
[1726069496324,3.7772,132.38,132.32,5.09147969]
[1726069496623,3.7772,132.38,132.32,1.3036]
[1726069496818,3.7772,132.38,132.32,5.13795906]
[1726069497021,3.7772,132.38,132.34,3.7781]
[1726069497218,3.7772,132.38,132.32,1.3036]
[1726069497426,32.13,132.42,132.32,4.99134121]
[1726069497732,33.5362,132.44,132.32,4.99134121]
[1726069498119,32.13,132.41,132.32,4.99134121]
[1726069499024,32.13,132.39,132.3,1.3318]
[1726069499224,32.13,132.39,132.33,3.7783]
[1726069499624,32.13,132.39,132.3,1.3318]
[1726069499926,1.4062,132.44,132.3,1.3318]
[1726069499927,32.13,132.41,132.3,1.3318]
[1726069500128,3.7772,132.38,132.34,3.7781]
[1726069500330,32.13,132.41,132.31,32.13]
[1726069500929,32.13,132.43,132.33,32.13]
[1726069501129,32.13,132.43,132.34,3.82037746]
[1726069501326,32.13,132.43,132.32,1.3218]
[1726069501525,32.13,132.41,132.32,1.3218]
[1726069501725,32.13,132.41,132.36,3.7776]
[1726069501726,3.7768,132.4,132.36,3.7776]
[1726069501927,32.13,132.41,132.32,1.3218]
[1726069502241,32.13,132.41,132.32,5.03571223]
[1726069502432,3.7773,132.38,132.34,3.7782]
[1726069502635,32.13,132.41,132.34,3.7782]
[1726069502831,32.13,132.39,132.29,32.13]
[1726069503026,4.0201,132.38,132.27,32.13]
[1726069503331,32.13,132.34,132.26,2.6323]
[1726069503727,7.8877982,132.38,132.26,2.6323]
[1726069503728,32.13,132.36,132.26,2.6323]
[1726069503929,36.1501,132.38,132.27,32.13]
[1726069504129,3.7579377,132.45,132.34,32.13]
[1726069504330,3.7579377,132.45,132.34,35.83295451]
[1726069504331,1.4124,132.44,132.34,35.83295451]
[1726069504535,3.7761,132.42,132.38,3.7769]
[1726069504729,1.4124,132.44,132.27,1.3325]
[1726069504944,3.7787,132.33,132.27,1.3325]
[1726069505132,1.4124,132.44,132.24,32.13]
[1726069505439,3.7794,132.31,132.25,3.7808]
[1726069505637,2.7621,132.34,132.24,35.89275028]
[1726069506036,1.4011,132.33,132.24,35.89275028]
[1726069506532,1.4011,132.33,132.26,32.13]
[1726069506729,2.7621,132.34,132.26,32.13]
[1726069506927,7.562,132.49,132.28,32.13]
[1726069506928,3.7431054,132.38,132.28,32.13]
[1726069507125,32.13,132.39,132.28,32.13]
[1726069507326,2.674,132.38,132.28,32.13]
[1726069507949,2.674,132.38,132.3,32.13]
[1726069508747,3.7774,132.37,132.3,32.13]
[1726069509047,2.674,132.38,132.3,32.13]
[1726069509441,3.7782,132.35,132.3,32.13]
[1726069509743,32.13,132.34,132.22,3.81926464]
[1726069509944,1.3633,132.33,132.23,32.13]
[1726069510251,34.804,132.38,132.25,32.13]
[1726069510436,1.3633,132.37,132.27,32.13]
[1726069510836,32.13,132.36,132.26,2.6565]
[1726069511035,32.13,132.36,132.25,32.13]
[1726069511527,3.7791,132.32,132.25,35.9108]
[1726069511940,3.7786,132.33,132.25,32.13]
[1726069512133,1.3633,132.37,132.25,32.13]
[1726069512638,3.7788,132.33,132.27,32.13]
[1726069512842,1.3633,132.37,132.27,32.13]
[1726069513037,3.7788,132.33,132.27,32.13]
[1726069513235,1.3633,132.37,132.27,32.13]
[1726069513736,1.3633,132.37,132.27,35.9103]
[1726069513940,1.3633,132.37,132.3,32.13]
[1726069514139,3.76275028,132.5,132.25,35.98708884]
[1726069514140,3.76275028,132.5,132.34,32.13]
[1726069514340,32.13,132.46,132.34,32.13]
[1726069514639,32.13,132.46,132.36,3.7777]
[1726069514640,3.71797169,132.45,132.36,3.7777]
[1726069514836,3.71797169,132.45,132.34,34.7869]
[1726069515034,32.13,132.44,132.32,3.7789]
[1726069515442,1.2991,132.43,132.32,3.7789]
[1726069515842,3.7777,132.37,132.31,35.9089]
[1726069516040,1.2991,132.43,132.31,32.13]
[1726069516347,3.7773,132.38,132.33,3.7785]
[1726069516544,32.13,132.42,132.31,32.13]
[1726069516747,33.4438,132.37,132.26,2.6569]
[1726069516944,1.2991,132.36,132.28,3.78]
[1726069517247,1.3138,132.37,132.28,32.13]
[1726069517447,1.3138,132.37,132.31,35.9089]
[1726069517448,5.0915,132.37,132.31,35.9089]
[1726069517634,1.3899,132.4,132.31,35.9089]
[1726069517840,6.44169984,132.4,132.31,35.9089]
[1726069518151,3.7778,132.36,132.31,35.9089]
[1726069518943,6.46021976,132.4,132.31,32.13]
[1726069519360,2.7037,132.4,132.31,32.13]
[1726069519646,2.7037,132.4,132.31,35.9089]
[1726069519849,6.484787,132.4,132.31,35.9089]
[1726069520444,2.7037,132.4,132.32,3.7788]
[1726069520637,3.7772,132.38,132.31,32.13]
[1726069520841,6.56718174,132.4,132.31,32.13]
[1726069521041,6.56718174,132.4,132.26,34.7869]
[1726069521042,34.8337,132.4,132.26,34.7869]
[1726069521245,3.77749206,132.39,132.26,34.7869]
[1726069521540,32.13,132.38,132.26,34.7869]
[1726069521947,32.13,132.38,132.3,3.7792]
[1726069522453,3.7781,132.35,132.31,3.7791]
[1726069522751,3.7781,132.35,132.28,32.13]
[1726069523148,32.13,132.38,132.28,32.13]
[1726069523850,3.778,132.35,132.28,32.13]
[1726069524146,32.13,132.38,132.28,32.13]
[1726069525046,2.7037,132.4,132.28,32.13]
[1726069525249,2.7037,132.4,132.3,32.13]
[1726069525567,3.7774,132.37,132.31,3.7789]
[1726069526054,2.7037,132.4,132.31,3.7789]
[1726069526449,3.7779,132.36,132.31,3.7789]
[1726069526648,3.7779,132.36,132.32,3.7789]
[1726069527153,3.7775,132.37,132.3,32.13]
[1726069527457,3.7775,132.37,132.26,34.7869]
[1726069527458,32.13,132.37,132.26,34.7869]
[1726069527662,32.13,132.37,132.27,3.78]
[1726069527854,32.13,132.37,132.26,34.7869]
[1726069528124,3.7791,132.31,132.26,34.7869]
[1726069528257,32.13,132.37,132.26,34.7869]
[1726069528457,32.13,132.37,132.27,3.7803]
[1726069528659,32.13,132.35,132.26,2.6569]
[1726069529151,32.13,132.35,132.27,3.7801]
[1726069530253,32.13,132.35,132.26,2.6569]
[1726069530760,3.7785,132.34,132.26,34.7869]
[1726069531059,32.13,132.37,132.26,34.7869]
[1726069531254,32.13,132.37,132.31,3.779]
[1726069531456,32.13,132.37,132.26,34.7869]
[1726069531653,32.13,132.37,132.31,3.779]
[1726069531856,32.13,132.37,132.26,34.7869]
[1726069531857,32.13,132.39,132.28,32.13]
[1726069532357,1.3838,132.41,132.33,32.13]
[1726069532555,5.1603,132.41,132.34,3.74952748]
[1726069532759,1.3838,132.41,132.33,32.13]
[1726069532957,5.1603,132.41,132.33,35.96836092]
[1726069533460,1.3838,132.41,132.33,32.13]
[1726069533957,1.3838,132.41,132.37,3.7774]
[1726069534159,1.3838,132.41,132.33,34.7905]
[1726069534657,1.3838,132.41,132.36,3.7775]
[1726069534866,1.3838,132.41,132.33,34.7905]
[1726069534867,3.7769,132.39,132.33,34.7905]
[1726069535164,1.3838,132.41,132.36,3.7777]
[1726069535857,3.7768,132.4,132.36,3.7777]
[1726069536159,3.7768,132.4,132.35,3.7779]
[1726069537555,3.7769,132.39,132.35,3.7779]
[1726069539364,3.69152875,132.39,132.31,32.13]
[1726069539559,1.3674,132.4,132.31,35.83966523]
[1726069539755,5.11636093,132.4,132.31,35.83966523]
[1726069539955,3.7775,132.37,132.33,3.7784]
[1726069540164,1.3674,132.4,132.31,32.13]
[1726069540466,3.7774,132.38,132.31,32.13]
[1726069541064,3.7774,132.37,132.33,3.7785]
[1726069541260,32.13,132.39,132.28,32.13]
[1726069541575,3.7786,132.34,132.27,2.659]
[1726069541758,32.13,132.37,132.26,32.13]
[1726069542163,32.13,132.37,132.29,3.7795]
[1726069542476,1.2901,132.39,132.24,38.61428991]
[1726069542477,32.13,132.35,132.24,38.61428991]
[1726069542670,3.7789,132.32,132.28,3.7798]
[1726069542867,2.7243,132.34,132.24,38.61428991]
[1726069543170,3.779,132.32,132.28,3.7798]
[1726069543773,2.7243,132.34,132.24,38.61428991]
[1726069544370,3.7791,132.32,132.28,3.7798]
[1726069544769,3.7791,132.31,132.26,3.7803]
[1726069544966,1.3458,132.33,132.24,34.789]
[1726069545274,3.7789,132.32,132.29,3.7796]
[1726069545776,3.7789,132.32,132.28,3.7798]
[1726069545975,5.21545957,132.33,132.24,34.789]
[1726069546275,5.21545957,132.33,132.24,32.13]
[1726069546471,5.21545957,132.33,132.26,3.7805]
[1726069546666,3.7796,132.3,132.26,3.7805]
[1726069546871,5.21545957,132.33,132.26,3.7805]
[1726069547075,3.7793,132.31,132.27,3.7802]
[1726069547372,5.21545957,132.33,132.27,3.7802]
[1726069547574,3.7798,132.29,132.26,3.7805]
[1726069547786,5.21545957,132.33,132.24,32.13]
[1726069548170,3.7796,132.3,132.27,3.7802]
[1726069548378,3.7796,132.3,132.24,32.13]
[1726069548568,5.21545957,132.33,132.24,32.13]
[1726069548769,32.13,132.32,132.23,9.07681853]
[1726069549272,32.13,132.28,132.23,9.07681853]
[1726069549476,2.7431,132.27,132.23,9.07681853]
[1726069549773,3.7811,132.24,132.17,32.13]
[1726069549978,2.7431,132.27,132.17,32.13]
[1726069550277,3.782,132.21,132.14,32.13]
[1726069550766,3.81458824,132.24,132.14,32.13]
[1726069550972,32.13,132.24,132.14,32.13]
[1726069551274,32.13,132.24,132.12,2.6199]
[1726069551478,32.13,132.24,132.12,34.7499]
[1726069551773,35.99754762,132.26,132.14,32.13]
[1726069551977,35.99754762,132.26,132.16,32.13]
[1726069552175,3.86754762,132.26,132.21,3.7819]
[1726069552377,2.7431,132.27,132.18,32.13]
[1726069552571,3.87019558,132.26,132.18,32.13]
[1726069552873,2.7431,132.27,132.18,32.13]
[1726069553679,2.7431,132.27,132.17,3.69807761]
[1726069553680,2.7431,132.27,132.21,32.13]
[1726069555678,3.7808,132.26,132.21,35.9118]
[1726069555878,3.7808,132.26,132.21,32.13]
[1726069556078,2.7431,132.27,132.21,32.13]
[1726069557371,32.13,132.32,132.21,32.13]
[1726069557577,2.7255,132.31,132.21,32.13]
[1726069557773,2.7255,132.31,132.23,32.13]
[1726069557982,2.7255,132.31,132.26,3.7803]
[1726069558167,2.7255,132.31,132.23,32.13]
[1726069558569,2.7255,132.31,132.24,3.7809]
[1726069558987,2.7255,132.31,132.23,35.9114]
[1726069559275,2.7255,132.31,132.23,32.13]
[1726069559484,6.5049,132.31,132.26,3.7804]
[1726069559880,2.7255,132.31,132.26,3.7804]
[1726069560180,2.7255,132.31,132.25,3.7808]
[1726069560382,2.7255,132.31,132.23,32.13]
[1726069560585,3.78,132.28,132.21,32.13]
[1726069560782,2.7255,132.31,132.23,32.13]
[1726069561373,1.3166,132.32,132.25,32.13]
[1726069561778,1.3166,132.32,132.3,3.7793]
[1726069562089,32.13,132.37,132.25,35.82043102]
[1726069562275,1.3255,132.36,132.25,35.82043102]
[1726069562603,1.3255,132.36,132.27,32.13]
[1726069562883,3.7796,132.3,132.22,3.7815]
[1726069563085,3.82344468,132.3,132.2,1.3148]
[1726069563284,32.13,132.3,132.2,33.4448]
[1726069563481,3.781,132.25,132.21,3.7818]
[1726069563687,2.6538,132.29,132.2,32.13]
[1726069563688,4.0163,132.29,132.2,32.13]
[1726069563885,32.13,132.28,132.14,1.3148]
[1726069564185,32.13,132.26,132.15,32.13]
[1726069564776,3.7814,132.23,132.18,3.7828]
[1726069565189,32.13,132.26,132.15,32.13]
[1726069565391,3.7811,132.25,132.2,3.7822]
[1726069565588,32.13,132.28,132.17,32.13]
[1726069566584,3.7818,132.22,132.17,35.9129]
[1726069567091,3.7818,132.22,132.18,3.7828]
[1726069567482,32.13,132.28,132.17,32.13]
[1726069567683,32.13,132.28,132.19,3.7823]
[1726069568091,4.0163,132.29,132.19,32.13]
[1726069568286,3.77997998,132.28,132.19,32.13]
[1726069568588,3.69447548,132.28,132.17,32.13]
[1726069568799,32.13,132.27,132.17,32.13]
[1726069569095,32.13,132.27,132.17,3.7831]
[1726069569404,32.13,132.25,132.15,32.13]
[1726069569789,3.7819,132.22,132.15,32.13]
[1726069569983,32.13,132.25,132.17,3.7831]
[1726069570492,32.13,132.25,132.15,32.13]
[1726069570694,32.13,132.25,132.17,3.7831]
[1726069571189,32.13,132.25,132.15,3.7835]
[1726069571495,32.13,132.25,132.13,33.4479]
[1726069571887,3.7825,132.2,132.16,3.7834]
[1726069572082,32.13,132.25,132.13,33.4479]
[1726069572282,7.76903961,132.29,132.17,32.13]
[1726069572487,7.76903961,132.29,132.13,1.3179]
[1726069572488,7.76903961,132.29,132.19,32.13]
[1726069572688,7.76903961,132.29,132.2,3.74839197]
[1726069572886,7.76903961,132.29,132.19,32.13]
[1726069572887,32.13,132.39,132.19,32.13]
[1726069573092,32.13,132.35,132.24,32.13]
[1726069573293,32.13,132.33,132.21,32.13]
[1726069573790,3.7802,132.28,132.21,32.13]
[1726069573995,3.85426907,132.28,132.2,2.6305]
[1726069574195,32.13,132.3,132.19,32.13]
[1726069574395,3.781,132.25,132.21,3.7818]
[1726069574784,6.44678321,132.27,132.2,3.7822]
[1726069574785,3.7812,132.24,132.2,3.7822]
[1726069575189,3.7812,132.24,132.17,35.94040611]
[1726069575190,6.44678321,132.27,132.17,32.13]
[1726069575392,3.7817,132.23,132.15,32.13]
[1726069575591,32.13,132.26,132.15,35.92036527]
[1726069575985,3.7812,132.24,132.15,35.92036527]
[1726069576396,32.13,132.26,132.15,35.92036527]
[1726069576589,2.7328,132.27,132.2,32.13]
[1726069576986,3.7811,132.25,132.21,3.7818]
[1726069577196,2.7328,132.27,132.2,32.13]
[1726069577698,2.7328,132.27,132.22,3.7816]
[1726069577894,2.7328,132.27,132.2,32.13]
[1726069578090,3.7808,132.26,132.22,3.7815]
[1726069578498,2.7328,132.27,132.13,2.6305]
[1726069578699,32.13,132.26,132.13,34.7605]
[1726069578894,32.13,132.26,132.13,2.6305]
[1726069579898,3.7821,132.21,132.17,3.783]
[1726069580093,32.13,132.26,132.14,3.75624337]
[1726069580298,3.7818,132.22,132.14,3.75624337]
[1726069581002,32.13,132.26,132.13,2.6305]
[1726069581399,3.782,132.21,132.13,2.6305]
[1726069582108,3.782,132.21,132.17,3.783]
[1726069582304,32.13,132.23,132.07,3.84595023]
[1726069582605,32.13,132.23,132.15,3.7835]
[1726069582805,1.3576,132.22,132.15,3.7835]
[1726069583003,3.7828,132.19,132.15,3.7835]
[1726069583203,2.7328,132.27,132.16,32.13]
[1726069583409,3.7806,132.26,132.18,32.13]
[1726069583603,4.0904,132.27,132.22,3.7815]
[1726069583916,3.85773741,132.39,132.2,32.13]
[1726069584112,5.27836926,132.38,132.27,32.13]
[1726069584411,4.97272559,132.37,132.27,32.13]
[1726069584703,4.0581,132.38,132.27,35.9982542]
[1726069584909,4.0581,132.38,132.29,32.13]
[1726069585306,32.13,132.36,132.25,32.13]
[1726069585507,4.0581,132.38,132.23,33.4699]
[1726069585508,32.13,132.34,132.23,33.4699]
[1726069585705,3.7797,132.3,132.24,3.7809]
[1726069585913,3.7797,132.3,132.23,33.4699]
[1726069585914,32.13,132.34,132.23,33.4699]
[1726069586111,51.9,132.31,132.23,1.3399]
[1726069586312,7.78709402,132.38,132.21,3.7818]
[1726069586313,51.9,132.29,132.21,3.7818]
[1726069586609,51.9,132.27,132.16,51.9]
[1726069587003,2.6374,132.28,132.18,51.9]
[1726069587314,3.7804,132.27,132.21,3.782]
[1726069587503,3.7804,132.27,132.18,51.9]
[1726069587907,2.6374,132.28,132.18,51.9]
[1726069588107,3.7803,132.27,132.22,3.7817]
[1726069588305,2.6374,132.28,132.18,51.9]
[1726069588616,3.7803,132.27,132.22,3.7816]
[1726069588813,2.6374,132.28,132.18,51.9]
[1726069589311,3.7805,132.27,132.21,3.7818]
[1726069589507,2.6374,132.28,132.21,3.7818]
[1726069589710,3.7806,132.26,132.21,3.7818]
[1726069589904,2.6374,132.28,132.18,51.9]
[1726069590232,51.9,132.33,132.22,51.9]
[1726069590424,3.7789,132.32,132.27,3.7803]
[1726069590821,55.9313,132.37,132.25,51.9]
[1726069591017,55.9313,132.37,132.31,3.779]
[1726069591208,4.0313,132.37,132.31,3.779]
[1726069591913,3.7778,132.36,132.32,3.7788]
[1726069592108,1.3419,132.37,132.27,51.9]
[1726069592321,3.7772,132.38,132.34,3.7783]
[1726069592518,51.9,132.39,132.29,51.9]
[1726069592730,51.9,132.41,132.3,2.6736]
[1726069593022,3.7775,132.37,132.33,3.7784]
[1726069593527,51.9,132.41,132.3,2.6736]
[1726069593826,1.21963203,132.4,132.3,2.6736]
[1726069594213,3.7769,132.39,132.35,3.7779]
[1726069594418,3.7769,132.39,132.3,2.6736]
[1726069594824,3.7772,132.38,132.33,3.7783]
[1726069595025,51.9,132.41,132.3,2.6736]
[1726069595320,51.9,132.39,132.3,2.6736]
[1726069595528,51.9,132.36,132.25,51.9]
[1726069595917,3.7781,132.35,132.25,51.9]
[1726069596221,51.9,132.36,132.27,51.9]
[1726069596421,55.6778,132.36,132.28,2.6731]
[1726069596621,51.9,132.36,132.28,2.6731]
[1726069597014,3.7781,132.35,132.3,3.7794]
[1726069597323,54.685,132.39,132.28,2.6731]
[1726069597622,54.685,132.39,132.31,3.7791]
[1726069597820,1.21975238,132.38,132.31,3.7791]
[1726069598014,54.685,132.39,132.31,3.7789]
[1726069598219,54.685,132.39,132.28,2.6731]
[1726069598220,51.9,132.36,132.28,2.6731]
[1726069598416,51.9,132.36,132.27,51.9]
[1726069598417,51.9,132.32,132.08,227.0]
[1726069598721,51.9,132.3,132.21,1.3395]
[1726069599233,51.9,132.3,132.22,1.3255]
[1726069599618,51.9,132.32,132.22,1.3255]
[1726069599923,51.9,132.3,132.22,1.3255]
[1726069600126,3.7803,132.27,132.23,3.7812]
[1726069600311,51.9,132.3,132.17,51.9]
[1726069600511,51.9,132.28,132.17,51.9]
[1726069600819,3.7806,132.26,132.17,51.9]
[1726069601120,51.9,132.28,132.17,51.9]
[1726069601314,3.7809,132.25,132.21,3.7818]
[1726069601512,51.9,132.28,132.21,3.7818]
[1726069601718,51.9,132.32,132.21,3.83952783]
[1726069601923,2.7519,132.33,132.22,2.6708]
[1726069602218,2.7519,132.33,132.22,6.39309611]
[1726069602428,3.7794,132.31,132.22,6.39309611]
[1726069602621,2.7519,132.33,132.22,6.39309611]
[1726069602816,2.7519,132.33,132.24,51.9]
[1726069603018,6.5307,132.33,132.28,3.7798]
[1726069603318,6.5307,132.33,132.22,2.6708]
[1726069603319,2.7519,132.33,132.22,2.6708]
[1726069603925,51.9,132.31,132.22,2.6708]
[1726069604120,3.7803,132.27,132.22,2.6708]
[1726069604434,51.9,132.31,132.22,2.6708]
[1726069604931,6.58999739,132.33,132.14,3.79414781]
[1726069604932,51.9,132.29,132.18,51.9]
[1726069605119,6.58999739,132.33,132.15,2.673]
[1726069605120,51.9,132.25,132.15,2.673]
[1726069605528,2.7878,132.24,132.15,2.673]
[1726069605918,2.7878,132.24,132.14,51.9]
[1726069606117,3.7825,132.2,132.16,3.7834]
[1726069606415,2.7878,132.24,132.12,51.9]
[1726069606839,3.7818,132.22,132.14,51.9]
[1726069607029,2.7878,132.24,132.14,51.9]
[1726069607222,3.7836,132.16,132.1,51.9]
[1726069607534,51.9,132.2,132.1,51.9]
[1726069607828,3.7831,132.17,132.13,3.7843]
[1726069608036,3.7831,132.17,132.1,51.9]
[1726069608236,1.3892,132.19,132.09,1.3412]
[1726069608534,1.3892,132.19,132.08,51.9]
[1726069608535,2.7511,132.18,132.08,51.9]
[1726069608725,3.7835,132.16,132.08,51.9]
[1726069608937,2.7511,132.18,132.08,51.9]
[1726069609527,3.7833,132.17,132.13,3.7842]
[1726069611128,2.7511,132.18,132.1,51.9]
[1726069611523,2.7511,132.18,132.08,51.9]
[1726069612128,3.7835,132.16,132.11,3.7846]
[1726069612332,2.7511,132.18,132.08,51.9]
[1726069612628,3.7837,132.15,132.11,3.7847]
[1726069612938,2.7511,132.18,132.06,51.9]
[1726069612939,51.9,132.17,132.06,51.9]
[1726069613137,3.7843,132.13,132.09,3.7853]
[1726069614331,51.9,132.15,132.06,51.9]
[1726069614637,3.7842,132.14,132.09,3.7852]
[1726069614829,3.7842,132.14,132.06,51.9]
[1726069615137,3.7843,132.13,132.09,3.7852]
[1726069616030,3.7843,132.13,132.01,51.9]
[1726069616031,51.9,132.13,132.01,51.9]
[1726069616235,2.7511,132.18,132.01,51.9]
[1726069616236,51.9,132.11,132.01,51.9]
[1726069616531,4.0003,132.12,132.03,51.9]